fUSD/lending_fUSD_20260402
["ID","MTS","AMOUNT","RATE_DAILY","PERIOD"]
[419303785,1775135460668,-636.0,0.00035342,30]
[419303786,1775135460678,-282.0,0.00035342,30]
[419303787,1775135460689,-513.79340227,0.00035342,14]
[419303788,1775135460699,-228.0,0.00035352,30]
[419303789,1775135460709,-153.0,0.00035368,30]
[419303790,1775135460718,-519.0,0.00035368,30]
[419303791,1775135460727,-1563.0,0.00035368,30]
[419303792,1775135460737,-1790.0,0.00035368,30]
[419303793,1775135460746,-162.0,0.00035494,11]
[419303794,1775135460756,-300.90748913,0.00035507,2]
[419303795,1775135460766,-306.41067818,0.00035507,2]
[419303796,1775135460776,-1097.0,0.0003552,5]
[419303797,1775135460786,-970.29,0.00035556,2]
[419303798,1775135460795,-300.0,0.00035575,5]
[419303799,1775135460807,-621.0,0.00035593,2]
[419303800,1775135460818,-1346.0,0.00035593,2]
[419303801,1775135460828,-3520.0,0.00035593,2]
[419303802,1775135460838,-1046.0,0.00035593,2]
[419303803,1775135460848,-1263.0,0.00035593,2]
[419303804,1775135460858,-1217.0,0.00035593,2]
[419303805,1775135460868,-925.0,0.00035593,2]
[419303806,1775135460878,-189.45,0.00035616,2]
[419303807,1775135460889,-306.721982,0.00035616,7]
[419303808,1775135460899,-306.721982,0.00035616,7]
[419303809,1775135460910,-306.721982,0.00035616,7]
[419303810,1775135460919,-306.721982,0.00035616,7]
[419303811,1775135460929,-306.721982,0.00035616,7]
[419303812,1775135460940,-306.721982,0.00035616,7]
[419303813,1775135460950,-306.721982,0.00035616,7]
[419303814,1775135460960,-306.721982,0.00035616,7]
[419303815,1775135460969,-306.721982,0.00035616,7]
[419303816,1775135460979,-306.721982,0.00035616,7]
[419303817,1775135460988,-306.721982,0.00035616,7]
[419303818,1775135460998,-306.721982,0.00035616,7]
[419303819,1775135461009,-306.721982,0.00035616,7]
[419303820,1775135461018,-306.721982,0.00035616,7]
[419303821,1775135461028,-306.721982,0.00035616,7]
[419303822,1775135461038,-306.721982,0.00035616,7]
[419303823,1775135461048,-306.721982,0.00035616,7]
[419303824,1775135461058,-306.721982,0.00035616,7]
[419303825,1775135461069,-306.721982,0.00035616,7]
[419303826,1775135461079,-306.721984,0.00035616,7]
[419303827,1775135461090,-200.0,0.00035616,30]
[419303828,1775135461100,-400.0,0.0003567,2]
[419303829,1775135461111,-200.0,0.000357,14]
[419303830,1775135461121,-178.51,0.000357,30]
[419303831,1775135461131,-150.97,0.000357,30]
[419303832,1775135461140,-191.49,0.000357,30]
[419303833,1775135461152,-500.0,0.00035724,2]
[419303834,1775135461162,-410.78,0.00035797,30]
[419303835,1775135461171,-1571.0,0.00035814,11]
[419303836,1775135461181,-300.0,0.00036,3]
[419303837,1775135461192,-969.41494804,0.00036,2]
[419303838,1775135461201,-228.4075,0.00036,7]
[419303839,1775135461211,-190.81023954,0.00036,120]
[419303840,1775135461221,-4719.0,0.00036,120]
[419303841,1775135461231,-150.0,0.00036093,7]
[419303842,1775135461241,-177.0,0.00036232,3]
[419303843,1775135461251,-500.0,0.00036293,120]
[419303844,1775135461261,-1097.0,0.00036332,5]
[419303845,1775135461272,-150.0,0.00036341,3]
[419303846,1775135461281,-636.0,0.00036342,30]
[419303847,1775135461292,-282.0,0.00036342,30]
[419303848,1775135461302,-152.0,0.00036346,10]
[419303849,1775135461313,-228.0,0.00036352,30]
[419303850,1775135461324,-161.97419036,0.00036368,30]
[419303851,1775135461334,-519.0,0.00036368,30]
[419303852,1775135461343,-1563.0,0.00036368,30]
[419303853,1775135461353,-1790.0,0.00036368,30]
[419303854,1775135461363,-209.0,0.00036404,30]
[419303855,1775135461373,-150.0,0.0003643,2]
[419303856,1775135461384,-500.0,0.00036438,2]
[419303857,1775135461393,-380.03672845,0.00036442,2]
[419303858,1775135461403,-153.71560214,0.00036442,2]
[419303859,1775135461414,-3500.0,0.00036463,7]
[419303860,1775135461423,-178.51,0.000365,30]
[419303861,1775135461432,-150.97,0.000365,30]
[419303862,1775135461444,-191.49,0.000365,30]
[419303863,1775135461453,-1977.16,0.00036528,30]
[419303864,1775135461463,-12494.1276,0.000366,97]
[419303865,1775135461473,-1221.25,0.00036679,7]
[419303866,1775135461482,-1000.0,0.0003668,2]
[419303867,1775135461493,-1000.0,0.0003668,2]
[419303868,1775135461503,-1000.0,0.0003668,2]
[419303869,1775135461512,-1000.0,0.0003668,2]
[419303870,1775135461522,-1000.0,0.0003668,2]
[419303871,1775135461532,-943.55,0.00036729,2]
[419303872,1775135461544,-1000.0,0.00036737,2]
[419303873,1775135461554,-1000.0,0.00036737,2]
[419303874,1775135461565,-1000.0,0.00036737,2]
[419303875,1775135461574,-1000.0,0.00036737,2]
[419303876,1775135461584,-1000.0,0.00036737,2]
[419303877,1775135461593,-1626.86845958,0.000368,2]
[419303878,1775135461604,-152.78,0.00036986,30]
[419303879,1775135461614,-300.0,0.00037,3]
[419303880,1775135461624,-365.0,0.00037,2]
[419303881,1775135461633,-167.33715458,0.00037,2]
[419303882,1775135461643,-1000.83954942,0.00037,2]
[419303883,1775135461652,-354.86,0.00037014,90]
[419303884,1775135461662,-832.55,0.000371,15]
[419303885,1775135461672,-1097.0,0.00037143,5]
[419303886,1775135461681,-150.0,0.00037236,30]
[419303887,1775135462021,-178.51,0.000373,30]
[419303888,1775135462031,-636.0,0.00037342,30]
[419303889,1775135462041,-282.0,0.00037342,30]
[419303890,1775135462050,-228.0,0.00037352,30]
[419303891,1775135462061,-250.0,0.00037362,7]
[419303892,1775135462071,-250.0,0.00037362,7]
[419303893,1775135462081,-519.0,0.00037368,30]
[419303894,1775135462091,-1563.0,0.00037368,30]
[419303895,1775135462100,-1790.0,0.00037368,30]
[419303896,1775135462109,-380.0,0.00037376,2]
[419303897,1775135462119,-152.0,0.00037376,2]
[419303898,1775135462129,-4382.03506936,0.00037509,2]
[419303899,1775135462139,-152.0,0.00037619,11]
[419303900,1775135462148,-500.0,0.00037707,120]
[419303901,1775135462158,-937.22,0.0003772,2]
[419303902,1775135462168,-663.81763025,0.00037749,2]
[419303903,1775135462178,-1097.0,0.00037955,7]
[419303904,1775135462188,-177.0,0.00037973,3]
[419303905,1775135462199,-219.80378069,0.00038,7]
[419303906,1775135462209,-250.0,0.00038,10]
[419303907,1775135462218,-200.0,0.00038,3]
[419303908,1775135462228,-2055.6681,0.00038,30]
[419303909,1775135462237,-8185.1,0.00038,2]
[419303910,1775135462247,-15768.5196,0.00038,102]
[419303911,1775135462258,-8734.94514112,0.000381,33]
[419303912,1775135462269,-150.0,0.00038252,2]
[419303913,1775135462282,-380.0,0.0003831,2]
[419303914,1775135462292,-152.0,0.0003831,2]
[419303915,1775135462301,-636.0,0.00038342,30]
[419303916,1775135462310,-282.0,0.00038342,30]
[419303917,1775135462321,-228.0,0.00038352,30]
[419303918,1775135462331,-519.0,0.00038368,30]
[419303919,1775135462340,-1563.0,0.00038368,30]
[419303920,1775135462350,-1790.0,0.00038368,30]
[419303921,1775135462360,-280.0,0.0003838,5]
[419303922,1775135462370,-150.0,0.00038409,3]
[419303923,1775135462380,-1221.25,0.00038473,7]
[419303924,1775135462390,-66098.47711073,0.00038474,7]
[419303925,1775135462401,-12784.94164109,0.00038474,7]
[419303926,1775135462415,-60913.50271088,0.00038474,7]
[419303927,1775135462425,-621.0,0.00038593,2]
[419303928,1775135462435,-1346.0,0.00038593,2]
[419303929,1775135462446,-1046.0,0.00038593,2]
[419303930,1775135462455,-1263.0,0.00038593,2]
[419303931,1775135462465,-1217.0,0.00038593,2]
[419303932,1775135462475,-925.0,0.00038593,2]
[419303933,1775135462486,-2000.0,0.000386,2]
[419303934,1775135462496,-24166.77464398,0.000387,120]
[419303935,1775135462507,-1097.0,0.00038766,7]
[419303936,1775135462516,-302.97797935,0.00038834,2]
[419303937,1775135462526,-502.75239439,0.00038865,60]
[419303938,1775135462537,-151.14284237,0.00038865,60]
[419303939,1775135462546,-152.0,0.00038891,12]
[419303940,1775135462556,-300.0,0.00039,3]
[419303941,1775135462567,-500.0,0.00039122,120]
[419303942,1775135462577,-530.08424657,0.00039242,2]
[419303943,1775135462586,-1482.87,0.00039243,120]
[419303944,1775135462595,-380.0,0.00039245,2]
[419303945,1775135462605,-19901.0461,0.000393,108]
[419303946,1775135462614,-636.0,0.00039342,30]
[419303947,1775135462625,-282.0,0.00039342,30]
[419303948,1775135462634,-228.0,0.00039352,30]
[419303949,1775135462643,-519.0,0.00039368,30]
[419303950,1775135462653,-1563.0,0.00039368,30]
[419303951,1775135462662,-1790.0,0.00039368,30]
[419303952,1775135462671,-354.86,0.00039445,90]
[419303953,1775135462681,-1097.0,0.00039578,7]
[419303954,1775135462690,-177.0,0.00039714,3]
[419303955,1775135462699,-334.0,0.00039726,30]
[419303956,1775135462708,-200.0,0.00039726,30]
[419303957,1775135462718,-403.64572693,0.00039771,2]
[419303958,1775135462727,-309.0,0.00039989,30]
[419303959,1775135462736,-1221.25,0.00039999,7]
[419303960,1775135462746,-1221.25,0.00039999,7]
[419303961,1775135462755,-1221.25,0.00039999,7]
[419303962,1775135462765,-1221.25,0.00039999,7]
[419303963,1775135462774,-1221.43833359,0.00039999,7]
[419303964,1775135462783,-2009.05,0.0004,2]
[419303965,1775135462793,-246.03822816,0.0004,2]
[419303966,1775135462802,-200.0,0.0004,3]
[419303967,1775135462812,-2037.97323547,0.0004,120]
[419303968,1775135462821,-207.64738844,0.0004,120]
[419303969,1775135462831,-366.13800056,0.0004,3]
[419303970,1775135462840,-816.55904782,0.0004,3]
[419303971,1775135462850,-1264.99,0.0004,120]
[419303972,1775135462859,-1698.14828,0.0004,10]
[419303973,1775135462868,-55067.30541401,0.0004,7]
[419303974,1775135462878,-610.031798,0.0004,120]
[419303975,1775135462888,-102331.18887481,0.0004,90]
[419303976,1775135462898,-36086.89711874,0.0004,90]
[419303977,1775135462907,-166.63569286,0.0004,120]
[419303978,1775135462917,-5000.0,0.0004,12]
[419303979,1775135462927,-314.712672,0.0004,120]
[419303980,1775135462936,-200.0,0.0004,120]
[419303981,1775135462947,-200.48839343,0.0004,120]
[419303982,1775135462956,-160.0,0.0004,120]
[419303983,1775135462966,-10000.0,0.0004,120]
[419303984,1775135462976,-14322.37420298,0.0004,120]
[419303985,1775135462985,-151.52,0.0004,2]
[419303986,1775135462994,-151.52,0.0004,2]
[419303987,1775135463004,-151.52,0.0004,2]
[419303988,1775135463013,-151.52,0.0004,2]
[419303989,1775135463022,-151.52,0.0004,2]
[419303990,1775135463032,-151.52,0.0004,2]
[419303991,1775135463041,-151.52,0.0004,2]
[419303992,1775135463051,-151.52,0.0004,2]
[419303993,1775135463060,-151.52,0.0004,2]
[419303994,1775135463070,-151.52,0.0004,2]
[419303995,1775135463079,-151.52,0.0004,2]
[419303996,1775135463088,-151.52,0.0004,2]
[419303997,1775135463098,-151.52,0.0004,2]
[419303998,1775135463107,-151.52,0.0004,2]
[419303999,1775135463116,-151.52,0.0004,2]
[419304000,1775135463126,-151.52,0.0004,2]
[419304001,1775135463135,-151.52,0.0004,2]
[419304002,1775135463144,-151.52,0.0004,2]
[419304003,1775135463154,-151.52,0.0004,2]
[419304004,1775135463163,-151.52,0.0004,2]
[419304005,1775135463172,-151.52,0.0004,2]
[419304006,1775135463181,-151.52,0.0004,2]
[419304007,1775135463192,-151.52,0.0004,2]
[419304008,1775135463203,-151.52,0.0004,2]
[419304009,1775135463213,-151.52,0.0004,2]
[419304010,1775135463222,-151.52,0.0004,2]
[419304011,1775135463232,-151.52,0.0004,2]
[419304012,1775135463242,-151.52,0.0004,2]
[419304013,1775135463251,-151.52,0.0004,2]
[419304014,1775135463261,-151.52,0.0004,2]
[419304015,1775135463271,-151.52,0.0004,2]
[419304016,1775135463281,-151.52,0.0004,2]
[419304017,1775135463290,-151.52,0.0004,2]
[419304018,1775135463300,-151.52,0.0004,2]
[419304019,1775135463309,-151.52,0.0004,2]
[419304020,1775135463319,-151.52,0.0004,2]
[419304021,1775135463329,-151.52,0.0004,2]
[419304022,1775135463339,-151.52,0.0004,2]
[419304023,1775135463348,-151.52,0.0004,2]
[419304024,1775135463358,-151.52,0.0004,2]
[419304025,1775135463367,-151.52,0.0004,2]
[419304026,1775135463377,-151.52,0.0004,2]
[419304027,1775135463386,-151.52,0.0004,2]
[419304028,1775135463395,-151.52,0.0004,2]
[419304029,1775135463404,-151.52,0.0004,2]
[419304030,1775135463414,-151.52,0.0004,2]
[419304031,1775135463423,-151.52,0.0004,2]
[419304032,1775135463434,-305.7786035,0.0004002,2]
[419304033,1775135463446,-322.19,0.00040044,120]
[419304034,1775135463455,-152.0,0.00040164,13]
[419304035,1775135463466,-150.0,0.00040165,2]
[419304036,1775135463475,-553.05269023,0.00040165,2]
[419304037,1775135463485,-904.13,0.00040194,2]
[419304038,1775135463494,-500.0,0.00040335,2]
[419304039,1775135463503,-636.0,0.00040342,30]
[419304040,1775135463513,-282.0,0.00040342,30]
[419304041,1775135463522,-228.0,0.00040352,30]
[419304042,1775135463532,-519.0,0.00040368,30]
[419304043,1775135463541,-1563.0,0.00040368,30]
[419304044,1775135463550,-1790.0,0.00040368,30]
[419304045,1775135463560,-1097.0,0.00040389,30]
[419304046,1775135463569,-178.51,0.000404,30]
[419304047,1775135463579,-150.0,0.00040476,3]
[419304048,1775135463589,-200.0,0.00040482,2]
[419304049,1775135463598,-200.0,0.00040482,2]
[419304050,1775135463607,-200.0,0.00040482,2]
[419304051,1775135463616,-200.0,0.00040482,2]
[419304052,1775135463626,-200.0,0.00040482,2]
[419304053,1775135463636,-200.0,0.00040482,2]
[419304054,1775135463645,-200.0,0.00040482,2]
[419304055,1775135463654,-200.0,0.00040482,2]
[419304056,1775135463663,-200.0,0.00040482,2]
[419304057,1775135463673,-200.0,0.00040482,2]
[419304058,1775135463682,-200.0,0.00040482,2]
[419304059,1775135463692,-200.0,0.00040482,2]
[419304060,1775135463701,-200.0,0.00040482,2]
[419304061,1775135463711,-800.0,0.00040482,14]
[419304062,1775135463719,-800.0,0.00040482,14]
[419304063,1775135463729,-800.0,0.00040482,14]
[419304064,1775135463738,-500.0,0.00040482,2]
[419304065,1775135463747,-500.0,0.00040482,2]
[419304066,1775135463756,-500.0,0.00040482,2]
[419304067,1775135463765,-500.0,0.00040482,2]
[419304068,1775135463774,-500.0,0.00040482,2]
[419304069,1775135463784,-373.0,0.00040482,2]
[419304070,1775135463792,-200.0,0.00040482,2]
[419304071,1775135463801,-200.0,0.00040482,2]
[419304072,1775135463810,-200.0,0.00040482,2]
[419304073,1775135463819,-200.0,0.00040482,2]
[419304074,1775135463828,-209.0,0.00040514,30]
[419304075,1775135463838,-500.0,0.00040536,120]
[419304076,1775135463847,-500.0,0.00040556,2]
[419304077,1775135463856,-250.0,0.00040573,78]
[419304078,1775135463866,-25116.6023,0.000407,114]
[419304079,1775135463875,-200.0,0.00040769,7]
[419304080,1775135463884,-200.0,0.0004077,7]
[419304081,1775135463893,-200.0,0.00040774,7]
[419304082,1775135463903,-4720.64,0.00040861,120]
[419304083,1775135463912,-308.08,0.00040861,120]
[419304084,1775135463922,-2058.3,0.00040861,120]
[419304085,1775135463931,-2500.0,0.000409,14]
[419304086,1775135463940,-119062.0,0.0004095,60]
[419304087,1775135463950,-232.95790353,0.0004096,2]
[419304088,1775135463959,-300.0,0.00041,3]
[419304089,1775135463969,-57312.96764894,0.00041,5]
[419304090,1775135463978,-286.30035023,0.00041,45]
[419304091,1775135463987,-500.0,0.00041,45]
[419304092,1775135463996,-500.0,0.00041,45]
[419304093,1775135464005,-500.0,0.00041,45]
[419304094,1775135464015,-500.0,0.00041,45]
[419304095,1775135464024,-500.0,0.00041,45]
[419304096,1775135464033,-180.6876101,0.00041,45]
[419304097,1775135464814,-319.3123899,0.00041,45]
[419304098,1775135464823,-276.9856101,0.00041,45]
[419304099,1775135465543,-500.0,0.00012659,2]
[419304100,1775135465552,-500.0,0.00012659,2]
[419304101,1775135465562,-365.44210746,0.00012659,2]
[419304102,1775135465571,-151.0,0.00012756,2]
[419304103,1775135465581,-2000.0,0.00015,2]
[419304104,1775135465591,-2000.0,0.000151,2]
[419304105,1775135465602,-17.78485248,0.000152,2]
[419304106,1775135465673,-214.36442557,0.00013305,2]
[419304107,1775135465683,-1487.58224312,0.000152,2]
[419304108,1775135466213,-383.61527577,0.000152,2]
[419304109,1775135466224,-111.01762863,0.000152,2]
[419304110,1775135466234,-698.50237137,0.000153,2]
[419304170,1775136633062,-150.0,0.00010942,2]
[419304171,1775136633071,-309.0,0.00010942,2]
[419304172,1775136633081,-150.0,0.0001128,2]
[419304173,1775136633091,-195.0,0.00011809,2]
[419304174,1775136633100,-150.0,0.00012012,2]
[419304175,1775136633110,-793.0,0.00012052,2]
[419304176,1775136633120,-1200.0,0.00012052,2]
[419304177,1775136633130,-300.0,0.00012052,2]
[419304178,1775136633140,-28402.22,0.00012053,2]
[419304179,1775136633149,-500.47003133,0.00012073,2]
[419304180,1775136633162,-500.0,0.00012073,2]
[419304181,1775136633171,-500.0,0.00012073,2]
[419304182,1775136633181,-2412.14,0.00012121,2]
[419304183,1775136633190,-216.798,0.00012309,2]
[419304184,1775136633199,-1400.892,0.00012309,2]
[419304185,1775136633208,-365.47,0.0001236,2]
[419304186,1775136633218,-500.0,0.00012473,2]
[419304187,1775136633227,-500.0,0.00012473,2]
[419304188,1775136633236,-500.0,0.00012473,2]
[419304189,1775136633246,-500.0,0.00012473,2]
[419304190,1775136633255,-500.30491238,0.00012473,2]
[419304191,1775136633264,-205.7189423,0.00012473,2]
[419304192,1775136633273,-150.0,0.00012523,2]
[419304193,1775136633283,-2881.0690475,0.00012524,2]
[419304194,1775136633292,-12568.96706198,0.00012524,2]
[419304195,1775136633302,-500.0,0.00012559,2]
[419304196,1775136633311,-542.58940016,0.00012559,2]
[419304197,1775136633321,-1000.0,0.0001256,2]
[419304198,1775136633330,-25421.81526178,0.0001256,2]
[419304199,1775136633343,-8651.47874013,0.0001256,2]
[419304202,1775136633483,-1821.96396672,0.0001256,2]
[419304203,1775136633589,-1407.06176575,0.0001256,2]
[419304213,1775136637809,-150.85095809,0.0001255,2]
[419304214,1775136637819,-6198.88888905,0.0001256,2]
[419304215,1775136637831,-3427.47393524,0.0001256,2]
[419304216,1775136637871,-402.69639687,0.0001256,2]
[419304217,1775136637926,-500.0,0.0001256,2]
[419304415,1775136640757,-2454.74819787,0.0001256,2]
[419304416,1775136640781,-13584.52373215,0.0001256,2]
[419304431,1775136641107,-5194.36297898,0.0001256,2]
[419304432,1775136641141,-776.90309751,0.0001256,2]
[419304433,1775136641152,-1430158.08303795,0.0001256,2]
[419304434,1775136641161,-1000.0,0.00012621,2]
[419304435,1775136641171,-169.62713954,0.00012624,2]
[419304436,1775136641180,-166.66,0.00012724,2]
[419304437,1775136641191,-195.0,0.00012792,2]
[419304438,1775136641201,-1900.0,0.000128,4]
[419304439,1775136641210,-3800.0,0.000129,4]
[419304440,1775136641220,-341.0,0.00012998,2]
[419304441,1775136641230,-250.0,0.00013,2]
[419304442,1775136641239,-1000.0,0.00013021,2]
[419304443,1775136641249,-166.66,0.00013144,2]
[419304444,1775136641260,-1500.0,0.00013168,2]
[419304445,1775136641270,-420.0,0.00013229,2]
[419304446,1775136641279,-1680.0,0.00013257,2]
[419304447,1775136641289,-212.89352784,0.00013471,2]
[419304448,1775136641298,-550.0,0.000135,2]
[419304449,1775136641307,-166.66,0.00013564,2]
[419304450,1775136641316,-1004.34724751,0.00013568,2]
[419304451,1775136641325,-150.0,0.000136,2]
[419304452,1775136641335,-255.0,0.00013613,2]
[419304453,1775136641344,-500.0,0.00013698,2]
[419304454,1775136641353,-500.0,0.00013698,2]
[419304455,1775136641362,-500.0,0.00013698,2]
[419304456,1775136641371,-500.0,0.00013698,2]
[419304457,1775136641380,-500.0,0.00013698,2]
[419304458,1775136641390,-500.0,0.00013698,2]
[419304459,1775136641399,-500.0,0.00013698,2]
[419304460,1775136641408,-500.0,0.00013698,2]
[419304461,1775136641417,-500.0,0.00013698,2]
[419304462,1775136641426,-500.0,0.00013698,2]
[419304463,1775136641436,-500.0,0.00013698,2]
[419304464,1775136641446,-500.0,0.00013698,2]
[419304465,1775136641457,-529.28576111,0.00013698,2]
[419304466,1775136641467,-500.0,0.00013698,2]
[419304467,1775136641477,-500.0,0.00013698,2]
[419304468,1775136641488,-500.0,0.00013698,2]
[419304469,1775136641499,-500.0,0.00013698,2]
[419304470,1775136641508,-431.42104867,0.00013698,2]
[419304471,1775136641517,-500.0,0.00013698,2]
[419304472,1775136641527,-500.0,0.00013698,2]
[419304473,1775136641536,-500.0,0.00013698,2]
[419304474,1775136641546,-500.0,0.00013698,2]
[419304475,1775136641555,-500.0,0.00013698,2]
[419304476,1775136641566,-561.59815036,0.00013698,2]
[419304477,1775136641575,-500.0,0.00013698,2]
[419304478,1775136641584,-500.0,0.00013698,2]
[419304479,1775136641594,-500.0,0.00013698,2]
[419304480,1775136641604,-311.0391628,0.00013698,2]
[419304481,1775136641614,-500.0,0.00013698,2]
[419304482,1775136641623,-500.0,0.00013698,2]
[419304483,1775136641632,-500.0,0.00013698,2]
[419304484,1775136641643,-500.0,0.00013698,2]
[419304485,1775136641652,-500.0,0.00013698,2]
[419304486,1775136641663,-500.0,0.00013698,2]
[419304487,1775136641675,-500.0,0.00013698,2]
[419304488,1775136641684,-500.0,0.00013698,2]
[419304489,1775136641693,-708.2,0.00013698,2]
[419304490,1775136641703,-708.2,0.00013698,2]
[419304491,1775136641712,-708.2,0.00013698,2]
[419304492,1775136641721,-708.2,0.00013698,2]
[419304493,1775136641731,-708.2,0.00013698,2]
[419304494,1775136641739,-708.2,0.00013698,2]
[419304495,1775136641749,-708.2,0.00013698,2]
[419304496,1775136641759,-500.0,0.00013698,2]
[419304497,1775136641768,-500.0,0.00013698,2]
[419304498,1775136641777,-500.0,0.00013698,2]
[419304499,1775136641787,-500.0,0.00013698,2]
[419304500,1775136641796,-500.0,0.00013698,2]
[419304501,1775136641806,-500.0,0.00013698,2]
[419304502,1775136641815,-500.0,0.00013698,2]
[419304503,1775136641825,-500.0,0.00013698,2]
[419304504,1775136641835,-500.0,0.00013698,2]
[419304505,1775136641844,-500.0,0.00013698,2]
[419304506,1775136641855,-500.0,0.00013698,2]
[419304507,1775136641865,-500.0,0.00013698,2]
[419304508,1775136641875,-500.0,0.00013698,2]
[419304509,1775136641885,-500.0,0.00013698,2]
[419304510,1775136641895,-500.0,0.00013698,2]
[419304511,1775136641905,-500.0,0.00013698,2]
[419304512,1775136641915,-500.0,0.00013698,2]
[419304513,1775136641925,-500.0,0.00013698,2]
[419304514,1775136641934,-500.0,0.00013698,2]
[419304515,1775136641944,-512.39511374,0.00013698,2]
[419304516,1775136641953,-500.0,0.00013698,2]
[419304517,1775136641963,-500.0,0.00013698,2]
[419304518,1775136641972,-500.0,0.00013698,2]
[419304519,1775136641982,-500.0,0.00013698,2]
[419304520,1775136641991,-500.0,0.00013698,2]
[419304521,1775136642002,-500.0,0.00013698,2]
[419304522,1775136642011,-500.0,0.00013698,2]
[419304523,1775136642021,-500.0,0.00013698,2]
[419304524,1775136642033,-500.0,0.00013698,2]
[419304525,1775136642042,-500.0,0.00013698,2]
[419304526,1775136642051,-500.0,0.00013698,2]
[419304527,1775136642062,-500.0,0.00013698,2]
[419304528,1775136642071,-500.0,0.00013698,2]
[419304529,1775136642081,-500.0,0.00013698,2]
[419304530,1775136642090,-500.0,0.00013698,2]
[419304531,1775136642100,-500.0,0.00013698,2]
[419304532,1775136642109,-500.0,0.00013698,2]
[419304533,1775136642118,-500.0,0.00013698,2]
[419304534,1775136642127,-500.0,0.00013698,2]
[419304535,1775136642137,-500.0,0.00013698,2]
[419304536,1775136642146,-500.0,0.00013698,2]
[419304537,1775136642156,-500.0,0.00013698,2]
[419304538,1775136642166,-500.0,0.00013698,2]
[419304539,1775136642176,-500.0,0.00013698,2]
[419304540,1775136642185,-1005.2,0.00013698,2]
[419304541,1775136642194,-500.0,0.00013698,2]
[419304542,1775136642203,-500.0,0.00013698,2]
[419304543,1775136642212,-500.0,0.00013698,2]
[419304544,1775136642222,-500.0,0.00013698,2]
[419304545,1775136642232,-500.0,0.00013698,2]
[419304546,1775136642241,-500.0,0.00013698,2]
[419304547,1775136642251,-500.0,0.00013698,2]
[419304548,1775136642261,-500.0,0.00013698,2]
[419304549,1775136642270,-500.0,0.00013698,2]
[419304550,1775136642280,-500.0,0.00013698,2]
[419304551,1775136642289,-500.0,0.00013698,2]
[419304552,1775136642298,-488.21639013,0.00013698,2]
[419304553,1775136642307,-500.0,0.00013698,2]
[419304554,1775136642316,-500.0,0.00013698,2]
[419304555,1775136642325,-500.0,0.00013698,2]
[419304556,1775136642334,-500.0,0.00013698,2]
[419304557,1775136642344,-500.0,0.00013698,2]
[419304558,1775136642353,-500.0,0.00013698,2]
[419304559,1775136642362,-500.0,0.00013698,2]
[419304560,1775136642371,-500.0,0.00013698,2]
[419304561,1775136642380,-500.0,0.00013698,2]
[419304562,1775136642389,-500.0,0.00013698,2]
[419304563,1775136642398,-500.0,0.00013698,2]
[419304564,1775136642408,-500.0,0.00013698,2]
[419304565,1775136642417,-500.0,0.00013698,2]